Cogmind - Beta 13 @@@ ROGUE MODE // 2024.04.23 @ 08:16:40 Player: Tyrannosaurus Flex Result: Destroyed by D-53 Grenadier with Mini Grenade Launcher Performance ------------- Evolutions (0) 0 Regions Visited (4) 800 Robots Destroyed (22) 110 Value Destroyed (477) 477 Prototype IDs (25) 500 Alien Tech Used (0) 0 Bonus (268) 268 TOTAL SCORE: 2155 Bonus ------- Aligned with FarCom 300 Friendly Fire -32 Cogmind --------- Core Integrity 0/250 Matter 251/300 Energy 89/100 System Corruption 1% Temperature Cool (0) Movement Walking (120) Location -9/Mines Parts ------- > --- POWER (1) -------- (None) > --- PROPULSION (2) --- Aluminum Leg Aluminum Leg > --- UTILITY (2) ------ Medium Storage Unit > --- WEAPON (2) ------- Light Assault Rifle > --- INVENTORY (10) --- Aluminum Leg Aluminum Leg Aluminum Leg Large Storage Unit Hacking Suite Particle Gun Light Assault Rifle Grenade Launcher Longsword +1 Peak State ------------ > --- POWER ------------ Ion Engine > --- PROPULSION ------- Aluminum Leg Aluminum Leg > --- UTILITY ---------- Medium Storage Unit Signal Interpreter > --- WEAPON ----------- Particle Gun Light Assault Rifle > --- INVENTORY -------- Aluminum Leg Aluminum Leg Aluminum Leg Wheel Large Storage Unit High-capacity Storage Unit Light Assault Rifle Light Assault Rifle Grenade Launcher Grenade Launcher [Rating: 9] Favorites ----------- Power Ion Engine Engine Ion Engine Propulsion Aluminum Leg Leg Aluminum Leg Utility Medium Storage Unit Storage Medium Storage Unit Processor Signal Interpreter Weapon Light Assault Rifle Energy Gun Particle Gun Ballistic Gun Light Assault Rifle Launcher Grenade Launcher Build | -11 -10 -10 -10 -9 ------- Run | Yrd Mat Min Exi Min Slots Evolved . | . . . . . Power . | . . . . . Propulsion . | . . . . . Utility . | . . . . . Weapon . | . . . . . Parts Attached 25 | 6 14 1 . 4 Power 4 | 1 3 . . . Engine 4 | 1 3 . . . Core . | . . . . . Reactor . | . . . . . Propulsion 6 | 2 3 . . 1 Treads . | . . . . . Leg 6 | 2 3 . . 1 Wheel . | . . . . . Hover . | . . . . . Flight . | . . . . . Utility 5 | 1 3 1 . . Device . | . . . . . Storage 3 | 1 2 . . . Processor 2 | . 1 1 . . Hackware . | . . . . . Protection . | . . . . . Artifact . | . . . . . Weapon 10 | 2 5 . . 3 Energy Gun 4 | 1 3 . . . Energy Cannon . | . . . . . Ballistic Gun 4 | 1 2 . . 1 Ballistic Cannon . | . . . . . Launcher 2 | . . . . 2 Special Weapon . | . . . . . Impact Weapon . | . . . . . Slashing Weapon . | . . . . . Piercing Weapon . | . . . . . Special Melee Weapon . | . . . . . Unidentified Prototypes . | . . . . . Parts Lost 6 | . 2 . . 4 Power 2 | . 1 . . 1 Propulsion 1 | . . . . 1 Utility 1 | . . . . 1 Weapon 2 | . 1 . . 1 Highest Loss Streak 4 | . 1 . . 4 To Critical Strikes . | . . . . . Average Slot Usage (%) 99 | . 99 100 100 94 Engine 13 | . 14 14 14 11 Leg 28 | . 28 28 28 28 Storage 14 | . 14 14 14 14 Processor 13 | . 13 14 14 14 Energy Gun 13 | . 14 14 14 . Ballistic Gun 13 | . 13 14 14 14 Naked Turns . | . . . . . Heaviest Build 19 | 13 19 19 19 19 Greatest Support 20 | 20 20 20 20 20 Greatest Overweight (x) 1 | . . . . 1 Average Overweight (x) . | . . . . . Largest Inventory Capacity 10 | 8 10 10 10 10 Average Capacity 9 | 7 9 10 10 10 Most Carried 10 | 6 10 10 10 10 Average Carried 9 | 3 9 10 9 9 Final Capacity 10 | 8 10 10 10 10 Final Carried 10 | 6 10 10 10 9 Class Distribution -------------------- 67% | Scavenger-Mutant 32% | Mutant Dominant Class ---------------- Scavenger-Mutant | -10/Materials Scavenger-Mutant | -10/Mines Scavenger-Mutant | -10/Exiles Scavenger-Mutant | -9/Mines Resources | -11 -10 -10 -10 -9 ----------- Run | Yrd Mat Min Exi Min Matter Collected 639 | 256 356 17 7 3 Remotely . | . . . . . Salvage Created 609 | . 593 . . 16 Parts 50 | . 45 . . 5 Haulers Intercepted 1 | . 1 . . . Recyclers Shooed 2 | . 1 . . 1 Parts Field Recycled . | . . . . . Retrieved Matter . | . . . . . Parts Self-Destructed . | . . . . . Prevented . | . . . . . Kills | -11 -10 -10 -10 -9 ------- Run | Yrd Mat Min Exi Min Combat Hostiles Destroyed 19 | . 16 . . 3 Guns 16 | . 16 . . . AOE 3 | . . . . 3 Classes Destroyed 5 | . 5 . . . Hauler 1 | . 1 . . . Operator 1 | . 1 . . . Watcher 1 | . 1 . . . Swarmer 9 | . 6 . . 3 Grunt 10 | . 10 . . . Best Kill Streak 3 | . 3 . . 3 Combat Bots Only 3 | . 3 . . 3 Max Kills in Single Turn 3 | . 1 . . 3 Gunslinging . | . . . . . Exploded 3 | . . . . 3 Melee . | . . . . . Uniques/NPCs Destroyed . | . . . . . Combat | -11 -10 -10 -10 -9 -------- Run | Yrd Mat Min Exi Min Hostile Shots Fired 102 | . 84 . . 18 Missed 28 | . 22 . . 6 Damage Taken 984 | . 611 . . 373 Core 256 | . 132 . . 124 Absorbed by Shields . | . . . . . Core Remaining (%) 100 | 100 . . . . Volleys Fired 72 | . 69 . . 3 Largest 2 | . 2 . . 2 Hottest 85 | . 85 . . 50 Shots Fired 143 | . 138 . . 5 Gun 140 | . 138 . . 2 Cannon . | . . . . . Launcher 3 | . . . . 3 Special . | . . . . . Kinetic 71 | . 69 . . 2 Thermal 69 | . 69 . . . Explosive 3 | . . . . 3 Electromagnetic . | . . . . . Robot Hit Streak 14 | . 14 . . 3 Robot Miss Streak 4 | . 4 . . 1 Penetration Max . | . . . . . Secondary Targets . | . . . . . Shots Hit Robots 86 | . 83 . . 3 Core Hits 42 | . 35 . . 7 Critical Kills . | . . . . . Critical Parts Destroyed . | . . . . . Critical Strikes 4 | . 4 . . . Burn 4 | . 4 . . . Melee Attacks . | . . . . . Impact . | . . . . . Slashing . | . . . . . Piercing . | . . . . . Sneak Attacks . | . . . . . Combat Hostiles . | . . . . . Follow-up Attacks . | . . . . . Damage Inflicted 1220 | . 862 . . 358 Guns 862 | . 862 . . . Cannons . | . . . . . Explosions 358 | . . . . 358 Melee . | . . . . . Ramming . | . . . . . Kinetic 298 | . 298 . . . Thermal 564 | . 564 . . . Explosive 358 | . . . . 358 Electromagnetic . | . . . . . Impact . | . . . . . Slashing . | . . . . . Piercing . | . . . . . Highest Corruption 1 | . 1 1 1 1 Average Corruption 1 | . 1 1 1 1 Corruption Purged . | . . . . . Corruption Blocked . | . . . . . Effects 8 | . 4 . 4 . Matter Fused 4 | . 3 . 1 . Heat Flow Errors 1 | . . . 1 . Parts Rejected 1 | . 1 . . . Data Loss (minor) 2 | . . . 2 . Overload Shots . | . . . . . Overflow Damage 59 | . . . . 59 Projectiles . | . . . . . Explosions 59 | . . . . 59 Melee . | . . . . . Knockbacks . | . . . . . Impact . | . . . . . Kinetic . | . . . . . Secondary . | . . . . . Self-Inflicted Damage 22 | . . . . 22 Shots 2 | . . . . 2 Rammed . | . . . . . Targets Rammed . | . . . . . Kicked . | . . . . . Crushed . | . . . . . Highest Temperature 256 | . 256 . 243 10 Average Temperature 63 | . 61 . 123 7 Received Heat Transfer 237 | . 237 . . . Siege Activations . | . . . . . Robots Corrupted . | . . . . . Combat Hostiles . | . . . . . Parts Fried . | . . . . . Impact Corruptions . | . . . . . Robots Melted . | . . . . . Combat Hostiles . | . . . . . Parts Melted 3 | . 3 . . . Heat Transferred 1804 | . 1804 . . . Parts Sabotaged . | . . . . . Parts Stolen . | . . . . . Parts Stripped . | . . . . . Power Chain Reactions . | . . . . . Alert | -11 -10 -10 -10 -9 ------- Run | Yrd Mat Min Exi Min Peak Influence 222 | . 222 35 . 109 Initial 35 | . . 35 . . Average 82 | . 89 35 . 89 Maximum Alert Level 1 | . 1 . . . Low Security (%) 94 | 100 93 100 . 100 Level 1 5 | . 6 . . . Level 2 . | . . . . . Level 3 . | . . . . . Level 4 . | . . . . . Level 5 . | . . . . . High Security . | . . . . . Max Security . | . . . . . Squads Dispatched 5 | . 5 . . . Investigation 4 | . 4 . . . Extermination . | . . . . . Reinforcement 1 | . 1 . . . Assault . | . . . . . Garrison . | . . . . . Intercept . | . . . . . Searches Triggered . | . . . . . Construction Impeded . | . . . . . Haulers Reinforced . | . . . . . Active Scanning Responses . | . . . . . Cargo Convoy Interrupts . | . . . . . Stealth | -11 -10 -10 -10 -9 --------- Run | Yrd Mat Min Exi Min Distress Signals 2 | . 2 . . . Communications Jammed . | . . . . . Distress Signals . | . . . . . Times Spotted 47 | . 37 . . 10 Peak Tracking Total 5 | . 5 . . 5 Tactical Retreats 4 | . 3 . . 1 Traps | -11 -10 -10 -10 -9 ------- Run | Yrd Mat Min Exi Min Traps Triggered 3 | . 3 . . . Indirectly . | . . . . . Trap Hack Attempts . | . . . . . Triggered . | . . . . . Disarmed . | . . . . . Reprogrammed . | . . . . . Reused . | . . . . . Traps Extracted . | . . . . . Installed . | . . . . . Triggered . | . . . . . Machines | -11 -10 -10 -10 -9 ---------- Run | Yrd Mat Min Exi Min Machines Disabled . | . . . . . Max in Single Turn . | . . . . . Machines Repaired . | . . . . . Machines Dismantled . | . . . . . Machines Sabotaged . | . . . . . Overloaded Fab Kills . | . . . . . Hacking | -11 -10 -10 -10 -9 --------- Run | Yrd Mat Min Exi Min Machines Accessed 10 | . 9 . 1 . Terminals 7 | . 7 . . . Fabricators . | . . . . . Repair Stations . | . . . . . Recycling Units 2 | . 2 . . . Scanalyzers . | . . . . . Garrison Access . | . . . . . Total Hacks 31 | . 30 . 1 . Successful 12 | . 11 . 1 . Failed 19 | . 19 . . . Catastrophic 2 | . 2 . . . Database Lockouts . | . . . . . Manual 24 | . 23 . 1 . Terminals 24 | . 24 . . . Fabricators . | . . . . . Repair Stations . | . . . . . Recycling Units 6 | . 6 . . . Scanalyzers . | . . . . . Garrison Access . | . . . . . Terminal Hacks 4 | . 3 . 1 . Prototype ID Bank 1 | . 1 . . . Terminal Index 1 | . 1 . . . Hauler Manifests 1 | . 1 . . . Derelict Proto ID Bank 1 | . . . 1 . Fabricator Hacks . | . . . . . Repair Station Hacks . | . . . . . Recycling Unit Hacks 3 | . 3 . . . Report Inventory 2 | . 2 . . . Retrieve Matter 1 | . 1 . . . Scanalyzer . | . . . . . Garrison Access Hacks . | . . . . . Unauthorized Hacks 5 | . 5 . . . Terminals 5 | . 5 . . . Botnet 5 | . 5 . . . Fabricators . | . . . . . Repair Stations . | . . . . . Recycling Units . | . . . . . Scanalyzers . | . . . . . Garrison Access . | . . . . . Data Cores Recovered . | . . . . . Used . | . . . . . Hacking Detections 9 | . 9 . . . Full Trace Events 2 | . 2 . . . Feedback Events . | . . . . . Feedback Blocked . | . . . . . Robot Schematics Acquired . | . . . . . Robots Built . | . . . . . Authchips . | . . . . . Time . | . . . . . Total Robot Build Rating . | . . . . . Part Schematics Acquired . | . . . . . Parts Built . | . . . . . Authchips . | . . . . . Time . | . . . . . Total Part Build Rating . | . . . . . Parts Repaired . | . . . . . Time . | . . . . . Parts Recycled . | . . . . . Recycled Matter . | . . . . . Retrieved Matter 140 | . 140 . . . Retrieved Components . | . . . . . Parts Scanalyzed . | . . . . . Part Schematics Acquired . | . . . . . Parts Damaged . | . . . . . Bothacking | -11 -10 -10 -10 -9 ------------ Run | Yrd Mat Min Exi Min Used RIF Installer . | . . . . . Robots Hacked . | . . . . . Non-combat . | . . . . . Combat . | . . . . . Robot Hacks Applied . | . . . . . Relay Couplers Released . | . . . . . Fabnet Peak Effective % . | . . . . . Robots Rewired . | . . . . . Allies Hacked . | . . . . . Hacks Repelled . | . . . . . Allies | -11 -10 -10 -10 -9 -------- Run | Yrd Mat Min Exi Min Total Allies . | . . . . . Largest Group . | . . . . . Highest-Rated Group . | . . . . . Highest-Rated Ally . | . . . . . Total Orders . | . . . . . Ally Attacks . | . . . . . Total Damage . | . . . . . Kills . | . . . . . Allies Corrupted . | . . . . . Allies Melted . | . . . . . Intel | -11 -10 -10 -10 -9 ------- Run | Yrd Mat Min Exi Min Robot Analysis Total . | . . . . . Derelict Logs Recovered . | . . . . . Drone Launches . | . . . . . Drone Recoveries . | . . . . . Exploration | -11 -10 -10 -10 -9 ------------- Run | Yrd Mat Min Exi Min Turns Passed 2421 | 110 1860 95 304 52 Spaces Moved 1591 | 67 1167 76 253 28 Core 6 | 6 . . . . Treads . | . . . . . Legs 1585 | 61 1167 76 253 28 Wheels . | . . . . . Hover . | . . . . . Flight . | . . . . . Fastest Speed 50 | 50 120 120 120 120 Average Speed 119 | 113 120 120 120 122 Slowest Speed 190 | 120 120 120 120 190 Overloaded Moves . | . . . . . Propulsion Burnouts . | . . . . . Robots Hopped . | . . . . . Cave-ins Triggered . | . . . . . Exploration Rate (%) 33 | 4 83 10 61 10 Regions Visited 4 Branch Regions 3 Pre-discovered Areas 1 | . . 1 . . Known Exits Taken 1 | . 1 . . . Unknown Exits Taken 3 | 1 . 1 1 . Scrap Searched 1 | . . 1 . . Spaces Dug . | . . . . . Terrain Destroyed 26 | . . . . 26 Melee . | . . . . . Projectile . | . . . . . AOE 26 | . . . . 26 Terrain Rammed . | . . . . . Walls Destroyed . | . . . . . Machines Disabled . | . . . . . Actions | -11 -10 -10 -10 -9 --------- Run | Yrd Mat Min Exi Min Total 1978 | 97 1506 80 254 41 Wait 260 | 19 234 3 . 4 Move 1587 | 66 1166 75 252 28 Hop . | . . . . . Pick Up 16 | 6 9 . 1 . Fast Attach 11 | 6 3 1 . 1 Attach 3 | . 2 . . 1 Detach 2 | . 1 1 . . Swap 11 | . 9 . . 2 Drop 16 | . 13 . 1 2 Fire 72 | . 69 . . 3 Melee . | . . . . . Ram . | . . . . . Kick . | . . . . . Crush . | . . . . . Escape Stasis . | . . . . . Rewire . | . . . . . Trap . | . . . . . Miscellaneous . | . . . . . Route ------- -11/Scrapyard -10/Materials (discovered 3 exits: [*Mat x2] / *Min) -10/Mines -10/Exiles (discovered 2 exits: [*Min x2]) -9/Mines (discovered 1 exit: [*Mat]) History --------- Turn | Location | Event 7 | -11/Scrapyard | Discovered new exit (range 15) 111 | -11/Scrapyard | Entered Materials 303 | -10/Materials | Build established: Mutant 1013 | -10/Materials | Discovered new exit (range 9) 1104 | -10/Materials | Build established: Scavenger-Mutant 1181 | -10/Materials | Discovered new exit (range 14) 1437 | -10/Materials | Discovered new exit (range 14) 1622 | -10/Materials | Core integrity fell below 50% 1964 | -10/Materials | Identified exit to Mines 1971 | -10/Materials | Entered Mines 1972 | -10/Mines | Learned location of Storage (-7) 2051 | -10/Mines | Deemed a non-threat by the Exiles lab entrance 2052 | -10/Mines | Discovered new exit (range 5) 2066 | -10/Mines | Entered Exiles 2084 | -10/Exiles | Discovered new exit (range 14) 2114 | -10/Exiles | Met 8R-AWN 2135 | -10/Exiles | Met EX-HEX 2170 | -10/Exiles | Met EX-BIN 2184 | -10/Exiles | Aligned with FarCom system 2185 | -10/Exiles | Given EX-Vault access code 2221 | -10/Exiles | Opened EX-Vault 2234 | -10/Exiles | Found Longsword +1 2259 | -10/Exiles | Warned to stay clear of 0b10 Research branches 2296 | -10/Exiles | Met EX-DEC 2356 | -10/Exiles | Discovered new exit (range 11) 2370 | -10/Exiles | Left Exiles lab with Longsword +1 2370 | -10/Exiles | Entered Mines 2371 | -9/Mines | Assembled infested the area 2376 | -9/Mines | Assisted by a Guerilla fighting off Assembled 2377 | -9/Mines | Discovered new exit (range 10) 2412 | -9/Mines | Core integrity fell below 20% 2420 | -9/Mines | Met a Derelict bent on vengeance 2422 | -9/Mines | Received a Mining Laser from a helpful Derelict 2422 | -9/Mines | Destroyed by D-53 Grenadier with Mini Grenade Launcher Last Messages --------------- 02407_ Destroyed Asb. Hover Unit. 02407_ U-05 Engineer lays Concrete. 02408_ U-05 Engineer builds a Wall. 02408_ QZ-MCX(h) destroyed. 02409_ as-54572 destroyed. 02410_ The unstable cave ceiling collapses. 02410_ U-05 Engineer destroyed. 02411_ R-06 Scavenger destroyed. 02412_ The unstable cave ceiling collapses. 02412_ Grenade Launcher destroyed. 02413_ Ion Engine destroyed. 02414_ Aluminum Leg destroyed. 02415_ The unstable cave ceiling collapses. 02420_ A derelict emerges from the shadows: "What are you doing alone down here?" 02422_ 1U-RQI(g): "And why aren't you carrying a mining laser?! Certainly you don't want THEM to uncover you when the ceiling comes crashing down? Here, take my spare." 02422_ Targeting Computer destroyed. Map ----- +----------------------------------------------------+ | | | | | | | | | | | | | | | | | | | | | | | | | | | | | | | ???????????????????????????????????? | | ???????????????????????????????????? | | ???????????????????????????????????? | | ???????????????????????????###?????? | | ??????????????????????????# ##????? | | ?????????????????????????? ##???? | | ?????????????????????????? g #???? | | ????????????????????###### < #???? | | ????????????????????? ?????? | | ??????????????????????? ???????? | | ?????????????????????####@#????????? | | ????????????????????## #####????? | | ???????????????????## #????? | | ??????????????????## #????? | | ??????????????????# #????? | | ??????????????????# [ #????? | | ??????????? # ##????? | | ??????????? # ?## #????? | | ???????????? ? ??? ##????? | | ?????????????? ???## d #?????? | | ????????????? k?????# d #?????? | | ???????????????????? ! #?????? | | ?????????????????? ##?????? | | ????????????????? !%% #??????? | | ??????????????? # == #??????? | | ??????????????### # = ??????? | | ????????????????#### ## ??????? | | ???????????????????# ?# ###?????? | | ???????????????????#??# ????????? | | ??????????????????????# ????????? | | ??????????????????????# % ?????????? | | ?????????????????????? ?????????? | | ?????????????????????? ?????????? | | ????????????????????? ?????????? | | ?????????????????????# ?????????? | +----------------------------------------------------+ Best States ------------- Heat Dissipation 25 Energy Generation 10 Energy Capacity 250 Matter Stores 300 Matter Capacity 300 Sight Range 16 Terrain Scan Density 10 Evasion (%) 55 Targeting Accuracy 5 Item Schematics ----------------- None Robot Schematics ------------------ None Fabricated ------------ Nothing Alien Tech Used ----------------- None Achievements -------------- None Challenges ------------ None Game ------ Seed SystemMinesnifferCharge Manual? 0 Play Time 00:30:16 Cumulative 18.5 hours Start 2024.04.23 @ 07:43:08 End 2024.04.23 @ 08:16:40 Sessions 1 Manual Loads 0 Difficulty Rogue Special Mode None Game No. 22 Rogue 22 Adventurer 0 Explorer 0 Win Type - Total 0 Types 0/0/0/0/0/0/0/0/0 Lore% 16 Gallery% 15 Achievement% 17 Wizard Run 0 Options --------- Layout 2 ASCII 0 Keyboard 1 Movement Numpad Keybinds 0 Fullscreen 1 Font 16/SmallcapsGlow Map View 55x47 Zoom Use 0% Tactical HUD 1 Map Filters NONE Filters NONE Steam 1 RUN: d4b39386-d303-40dc-b62d-eda00a43fb38